bitfinex/quotes_ETHUSD_20251108
["timestamp","ask_amount","ask_price","bid_price","bid_amount"]
[1762605922675,5.72812913,3410.4,3410.3,0.001]
[1762605922877,6.53122837,3410.4,3410.3,0.001]
[1762605925687,3.13962101,3410.4,3410.3,0.001]
[1762605925979,2.29636918,3410.4,3410.3,0.001]
[1762605926187,3.58371983,3410.4,3410.3,0.001]
[1762605926382,6.51592719,3410.4,3410.3,0.001]
[1762605926588,6.97532719,3410.4,3410.3,0.001]
[1762605927866,7.35567902,3410.4,3410.3,0.001]
[1762605928846,3.96407166,3410.4,3410.3,0.001]
[1762605929059,6.89627902,3410.4,3410.3,0.001]
[1762605930085,1.259712,3410.3,3410.1,0.005]
[1762605930287,0.63115318,3410.2,3410.1,0.005]
[1762605930782,0.63115318,3410.2,3410.1,0.4457]
[1762605931147,2.20797752,3410.2,3410.1,0.4457]
[1762605931348,0.63115318,3410.2,3410.1,0.6354]
[1762605931548,0.63115318,3410.2,3410.1,1.0761]
[1762605931984,1.03665718,3410.2,3410.1,1.0761]
[1762605932885,1.03665718,3410.2,3410.1,0.6354]
[1762605933050,2.29636918,3410.2,3410.1,0.6354]
[1762605933690,1.03665718,3410.2,3410.1,0.6354]
[1762605934632,1.03665718,3410.2,3410.1,1.0761]
[1762605935800,2.08764764,3410.2,3410.1,1.0761]
[1762605936307,1.41943556,3410.2,3410.1,4.40963769]
[1762605937227,0.63115318,3410.2,3410.1,4.40963769]
[1762605937790,2.31270246,3410.6,3410.2,2.93237933]
[1762605937791,0.63115318,3410.3,3410.2,2.93237933]
[1762605937990,0.002,3410.6,3410.5,3.37282138]
[1762605938293,0.002,3410.6,3410.5,4.34063266]
[1762605938518,0.002,3410.6,3410.5,4.78133266]
[1762605940194,0.002,3410.6,3410.5,4.79616254]
[1762605940392,0.002,3411.0,3410.9,2.93177753]
[1762605940632,0.002,3411.0,3410.9,3.37247753]
[1762605940789,0.002,3411.0,3410.9,4.48768233]
[1762605942350,0.002,3411.0,3410.9,4.50250361]
[1762605942712,0.002,3411.0,3410.9,4.48768233]
[1762605949362,0.002,3411.0,3410.9,3.37247753]
[1762605950474,0.002,3411.0,3410.6,2.93202581]
[1762605950662,0.002,3411.0,3410.9,0.4407]
[1762605951744,0.4983,3411.0,3409.7,2.9338023]
[1762605951946,0.4963,3410.8,3410.1,0.1957]
[1762605952160,0.4963,3410.8,3410.4,2.93214403]
[1762605952402,0.4963,3410.8,3410.1,0.1957]
[1762605952567,1.33471588,3410.8,3410.1,0.1957]
[1762605952738,0.33921588,3410.8,3410.7,0.4407]
[1762605953074,0.405504,3410.9,3410.4,2.93217201]
[1762605953236,0.407504,3411.0,3410.4,2.93217201]
[1762605953437,0.407504,3411.0,3410.5,2.93211382]
[1762605953637,0.407504,3411.0,3410.4,2.93217598]
[1762605954472,0.407504,3411.0,3410.5,2.93211564]
[1762605954676,0.405504,3410.9,3410.6,2.93201606]
[1762605955178,0.002,3411.0,3410.5,2.93210828]
[1762605955378,0.002,3411.0,3410.2,2.93229564]
[1762605955677,0.407504,3411.0,3410.4,2.93213606]
[1762605955971,0.407504,3411.0,3410.6,2.93202191]
[1762605956175,1.23510465,3411.0,3410.2,2.93237933]
[1762605956380,0.62793738,3410.9,3410.5,2.93206078]
[1762605956575,0.62793738,3410.9,3410.6,2.93202131]
[1762605956749,0.407504,3411.0,3410.2,0.4407]
[1762605956750,0.002,3411.0,3410.8,0.4407]
[1762605956946,0.002,3411.0,3410.9,3.37247753]
[1762605960685,0.002,3411.0,3410.9,3.81317753]
[1762605961373,0.002,3411.0,3410.9,3.37247753]
[1762605961551,0.002,3411.0,3410.9,0.4407]
[1762605961995,0.002,3411.0,3410.9,3.37247753]
[1762605962853,0.002,3411.0,3410.9,4.50250902]
[1762605963161,0.002,3411.0,3410.9,4.48768774]
[1762605964804,0.002,3411.0,3410.9,9.13799579]
[1762605964963,0.002,3411.0,3410.9,9.28439579]
[1762605966762,0.002,3411.0,3410.9,4.63408774]
[1762605980325,0.002,3411.0,3410.9,4.64890902]
[1762605980630,0.002,3411.0,3410.9,4.63408774]
[1762605980835,0.002,3411.0,3410.9,4.64890902]
[1762605981435,0.002,3411.0,3410.9,4.63408774]
[1762605982299,0.002,3411.0,3410.9,5.89379974]
[1762605982719,1e-08,3411.3,3410.9,5.89379974]
[1762605982928,1e-08,3411.3,3411.2,8.07532774]
[1762605983150,1e-08,3411.3,3411.2,8.66242774]
[1762605984063,1e-08,3411.3,3411.2,3.57141969]
[1762605984233,1e-08,3411.3,3411.2,8.22172774]
[1762605984716,1e-08,3411.3,3411.2,8.66242774]
[1762605984916,1e-08,3411.3,3411.2,10.44319106]
[1762605986264,0.002,3412.4,3412.0,7.5811404]
[1762605986465,1e-08,3412.3,3412.2,3.37136057]
[1762605986643,1e-08,3412.3,3412.2,3.71596057]
[1762605986846,1e-08,3412.3,3412.2,4.15666057]
[1762605987047,1e-08,3412.3,3412.2,11.24046072]
[1762605987229,0.002,3412.8,3412.7,2.93023119]
[1762605987562,0.002,3412.8,3412.7,8.02123924]
[1762605987860,0.002,3412.8,3412.7,8.46193924]
[1762605988160,0.002,3412.8,3412.7,8.02123924]
[1762605988468,0.002,3412.8,3412.7,9.19700793]
[1762605988667,0.002,3412.8,3412.7,9.34340793]
[1762605988832,0.002,3412.8,3412.7,8.90270793]
[1762605989852,0.002,3412.8,3412.7,9.34340793]
[1762605993633,0.4764,3412.8,3412.7,2.93023119]
[1762605994085,0.9748,3412.8,3412.7,2.93023119]
[1762605994986,0.9748,3412.8,3412.2,0.1464]
[1762605995171,0.4744,3412.3,3412.2,1.259712]
[1762605995376,0.4971,3412.7,3412.6,2.93031706]
[1762605995795,0.9715,3412.7,3412.6,2.93031706]
[1762605996086,0.9715,3412.7,3412.2,2.93060402]
[1762605996293,0.4744,3412.3,3411.4,4.65030805]
[1762605996479,0.369,3412.1,3412.0,2.93083235]
[1762605996878,0.8674,3412.1,3412.0,2.93083235]
[1762605997891,0.369,3412.1,3412.0,2.93083235]
[1762605998196,0.8674,3412.1,3412.0,2.93083235]
[1762606001572,0.8674,3412.1,3411.5,0.1464]
[1762606001777,0.4734,3411.9,3411.8,2.93100416]
[1762606002107,1.1676,3411.9,3411.8,2.93100416]
[1762606005910,1.12329754,3411.9,3411.8,2.93100416]
[1762606006999,0.62489754,3411.9,3411.8,2.93100416]
[1762606007314,1.12339754,3411.9,3411.8,2.93100416]
[1762606007878,1.12339754,3411.9,3411.1,1.458912]
[1762606008073,1.12339754,3411.9,3411.1,0.810122]
[1762606008074,0.1958,3411.9,3411.1,0.810122]
[1762606008275,0.4525,3411.2,3411.1,2.93160564]
[1762606009744,0.951,3411.2,3411.1,2.93160564]
[1762606010447,0.4985,3411.6,3410.8,1.406112]
[1762606010643,0.4985,3411.6,3411.5,2.9312619]
[1762606011143,0.951,3411.6,3411.5,2.9312619]
[1762606013035,0.951,3411.6,3411.3,2.93136506]
[1762606013036,0.951,3411.6,3410.6,0.001]
[1762606013236,0.4525,3410.7,3410.6,2.93303541]
[1762606013411,0.951,3410.7,3410.6,2.93303541]
[1762606015832,0.951,3410.7,3410.6,0.001]
[1762606016212,3.2437053,3410.7,3410.6,0.001]
[1762606016428,4.49792386,3410.7,3410.6,0.001]
[1762606016627,4.53457322,3410.7,3410.6,0.001]
[1762606016949,4.49792386,3410.7,3410.6,0.001]
[1762606018130,3.87043456,3410.7,3410.6,0.001]
[1762606018861,2.210712,3410.7,3410.6,0.001]
[1762606020663,1.712212,3410.7,3410.6,2.93303541]
[1762606020867,2.210712,3410.7,3410.6,0.001]
[1762606021965,5.54816545,3410.7,3410.6,0.001]
[1762606022272,5.97374997,3410.7,3410.6,0.001]
[1762606022473,3.33779734,3410.3,3410.2,0.001]
[1762606022673,4.19209133,3410.2,3409.7,0.001]
[1762606022860,0.89875981,3410.1,3409.7,0.001]
[1762606023065,4.71126029,3410.1,3409.7,0.001]
[1762606023364,1.74213916,3410.1,3409.7,0.001]
[1762606023541,7.34519389,3410.1,3409.7,0.001]
[1762606023742,7.93429848,3410.1,3409.7,0.001]
[1762606023949,5.00183316,3410.1,3409.7,0.001]
[1762606024373,7.93429848,3410.1,3409.7,0.001]
[1762606025382,5.00183316,3410.1,3409.7,0.001]
[1762606025580,7.93429848,3410.1,3409.7,0.001]
[1762606025906,4.207394,3410.1,3409.7,0.001]
[1762606026200,2.83309087,3410.1,3409.7,0.001]
[1762606026382,2.207412,3410.1,3409.7,0.001]
[1762606026705,2.612916,3410.1,3409.7,0.001]
[1762606027012,3.23840915,3410.1,3409.7,0.001]
[1762606027986,3.23840915,3410.1,3409.7,2.9337813]
[1762606027987,2.612916,3410.1,3409.7,2.9337813]
[1762606028376,0.11754144,3410.7,3410.0,0.49064063]
[1762606028578,0.62554713,3410.9,3410.2,3.4071053]
[1762606028778,0.62554713,3410.9,3410.4,2.93215227]
[1762606028779,0.405504,3410.9,3410.4,2.93215227]
[1762606028989,0.405504,3410.9,3410.4,2.93220584]
[1762606028990,0.4911,3410.9,3410.4,2.93220584]
[1762606029508,0.4786,3410.5,3410.3,2.93226156]
[1762606029812,0.4786,3410.5,3410.3,2.93229264]
[1762606030005,0.4911,3410.7,3410.3,2.93229264]
[1762606030208,0.4786,3410.4,3410.2,2.93231648]
[1762606030563,0.405504,3411.0,3410.3,0.4748]
[1762606030861,1.103676,3411.0,3410.3,2.93228143]
[1762606031213,0.4786,3410.4,3410.0,0.001]
[1762606031494,0.4786,3410.4,3410.3,2.93229334]
[1762606032793,0.4911,3410.7,3410.6,2.93203541]
[1762606033175,0.9697,3410.7,3410.5,2.93211433]
[1762606033372,0.45999308,3411.2,3410.6,0.4748]
[1762606033373,0.95109308,3411.2,3410.6,0.4748]
[1762606033598,1.03185452,3411.1,3410.8,2.93186097]
[1762606033916,0.405504,3411.1,3410.7,2.93191633]
[1762606034094,0.4911,3411.0,3410.7,2.93191633]
[1762606034719,0.4786,3410.8,3410.6,2.93202403]
[1762606034875,0.4786,3410.8,3410.2,0.4904]
[1762606035080,0.4786,3410.8,3410.3,0.36064317]
[1762606035568,0.405504,3411.1,3410.8,2.93180619]
[1762606035761,1.03238005,3411.2,3410.8,2.93180619]
[1762606035967,0.62687605,3411.1,3410.8,2.93180619]
[1762606036186,0.896604,3411.2,3410.8,2.93180619]
[1762606036624,0.4786,3410.9,3410.8,2.93180619]
[1762606037610,0.62687605,3411.0,3410.9,2.93177753]
[1762606037814,0.62687605,3411.0,3410.8,3.40660619]
[1762606037815,0.002,3411.2,3411.0,2.93166392]
[1762606037983,0.4931,3411.2,3411.0,2.93166392]
[1762606038167,0.62887605,3411.2,3411.1,3.40640564]
[1762606038367,0.002,3411.2,3411.1,2.93160564]
[1762606038990,0.4806,3411.2,3411.0,2.93166035]
[1762606039225,0.4806,3411.2,3411.1,2.93160564]
[1762606040199,1.10747605,3411.2,3411.0,2.93166885]
[1762606040416,0.62687605,3411.1,3411.0,2.93166885]
[1762606040719,0.4806,3411.2,3411.0,2.93166885]
[1762606040913,0.62887605,3411.2,3411.0,2.93166885]
[1762606041111,0.62687605,3411.1,3411.0,2.93166885]
[1762606041285,1.10547605,3411.1,3411.0,2.93166885]
[1762606041701,0.62687605,3411.1,3411.0,2.93166885]
[1762606042521,0.62687605,3411.1,3411.0,3.40646885]
[1762606044228,0.62687605,3411.1,3411.0,2.93166885]
[1762606044423,0.002,3411.2,3411.1,2.93160564]
[1762606044600,0.62887605,3411.2,3411.1,2.93160564]
[1762606044811,0.002,3411.2,3411.1,2.93160564]
[1762606045201,0.62887605,3411.2,3411.1,2.93160564]
[1762606045403,0.002,3411.2,3411.1,2.93160564]
[1762606045827,0.62887605,3411.2,3411.1,3.40640564]
[1762606046131,0.002,3411.2,3411.1,3.40640564]
[1762606046522,0.4806,3411.2,3411.1,2.93160564]
[1762606046852,0.002,3411.2,3411.1,3.40640564]
[1762606047814,0.002,3411.2,3411.1,2.93160564]
[1762606049815,0.002,3411.2,3411.1,3.40640564]
[1762606051338,0.002,3411.2,3411.1,2.93160564]
[1762606051743,0.002,3411.2,3411.1,3.43942262]
[1762606051924,0.002,3411.2,3411.1,3.42460564]
[1762606053323,0.002,3411.2,3411.1,3.91760564]
[1762606053530,0.002,3411.2,3411.1,3.42460564]
[1762606053730,0.002,3411.2,3411.1,4.11924572]
[1762606053922,0.002,3411.2,3411.1,4.61224572]
[1762606054155,0.002,3411.2,3411.1,4.11924572]
[1762606054339,0.002,3411.2,3411.1,4.6270627]
[1762606054541,0.002,3411.2,3411.1,4.61224572]
[1762606055219,0.002,3411.2,3411.1,4.6270627]
[1762606055421,0.002,3411.2,3411.1,4.61224572]
[1762606061138,0.002,3411.2,3411.1,4.11924572]
[1762606062228,0.002,3411.2,3411.1,4.61224572]
[1762606062429,0.002,3411.2,3411.1,4.6270627]
[1762606062680,0.002,3411.2,3411.1,4.61224572]
[1762606070963,0.002,3411.2,3411.1,4.11924572]
[1762606071275,0.4562,3411.2,3411.1,2.93160564]
[1762606072474,0.002,3411.2,3411.1,2.93160564]
[1762606073260,0.4562,3411.2,3411.1,2.93160564]
[1762606073883,0.4562,3411.2,3411.1,3.42290564]
[1762606073884,0.002,3411.2,3411.1,3.42290564]
[1762606075097,0.002,3411.2,3411.1,3.89150564]
[1762606075398,0.002,3411.2,3411.1,5.34243554]
[1762606075799,0.002,3411.2,3411.1,4.87383554]
[1762606077712,0.002,3411.2,3411.1,5.34243554]
[1762606078310,0.002,3411.2,3411.1,4.87383554]
[1762606078599,0.002,3411.2,3411.1,5.34243554]
[1762606080467,0.002,3411.2,3411.1,9.52154917]
[1762606080666,0.002,3411.2,3411.1,9.99014917]
[1762606081303,0.002,3411.2,3411.1,10.13654917]
[1762606081973,0.002,3411.2,3411.1,9.66794917]
[1762606083303,0.002,3411.2,3411.1,10.92766117]
[1762606084914,0.002,3411.2,3411.1,11.41746117]
[1762606085204,0.002,3411.2,3411.1,10.15774917]
[1762606085414,0.002,3411.2,3411.1,5.51003554]
[1762606085575,0.002,3411.2,3411.1,9.66794917]
[1762606087505,0.002,3411.2,3411.1,10.15774917]
[1762606090913,0.002,3411.2,3411.1,9.66794917]
[1762606091618,0.002,3411.2,3411.1,10.15774917]
[1762606092019,0.002,3411.6,3411.5,2.9312619]
[1762606092212,0.002,3411.6,3411.5,8.07197553]
[1762606092409,0.002,3411.6,3411.5,8.70817553]
[1762606093391,0.002,3412.1,3412.0,2.93083235]
[1762606093587,0.002,3412.1,3412.0,8.07154598]
[1762606093903,0.002,3412.1,3412.0,9.31819294]
[1762606094410,0.002,3412.1,3412.0,9.80799294]
[1762606094813,0.47,3412.1,3412.0,4.17747931]
[1762606094990,0.47,3412.1,3412.0,3.07723235]
[1762606095191,0.9388,3412.1,3412.0,2.93083235]
[1762606095734,0.002,3412.1,3412.0,3.43863]
[1762606096025,0.002,3412.1,3412.0,3.42383235]
[1762606096229,0.002,3412.1,3412.0,2.93083235]
[1762606096431,0.002,3412.1,3412.0,4.04539931]
[1762606097618,0.9388,3412.1,3412.0,2.93083235]
[1762606099308,0.002,3412.1,3412.0,2.93083235]
[1762606101629,0.002,3412.1,3412.0,3.42383235]
[1762606101831,0.002,3412.1,3412.0,3.91363235]
[1762606101991,0.002,3412.1,3412.0,5.07749931]
[1762606102909,0.002,3412.1,3412.0,4.09469931]
[1762606103142,0.47,3412.1,3412.0,2.93083235]
[1762606103916,0.9388,3412.1,3412.0,2.93083235]
[1762606105667,0.47,3412.1,3412.0,2.93083235]
[1762606105957,0.9388,3412.1,3412.0,2.93083235]
[1762606106325,0.002,3412.1,3412.0,2.93083235]
[1762606106565,0.47,3412.1,3412.0,3.51710795]
[1762606106929,0.9388,3412.1,3412.0,2.93083235]
[1762606110312,0.47,3412.1,3412.0,2.93083235]
[1762606111949,0.9203,3412.1,3412.0,2.93083235]
[1762606114534,0.47,3412.1,3412.0,2.93083235]
[1762606114735,0.4892,3412.1,3412.0,2.93083235]
[1762606114930,0.9395,3412.1,3411.9,0.001]
[1762606115252,0.4872,3412.0,3411.9,2.93188483]
[1762606115453,1.57014219,3412.0,3411.9,0.001]
[1762606116114,1.97564619,3412.0,3411.9,0.001]
[1762606119446,1.57014219,3412.0,3411.9,0.001]
[1762606120152,9.08011314,3412.0,3411.9,0.001]
[1762606120353,5.05614686,3412.0,3411.9,0.001]
[1762606120645,3.85910554,3412.0,3411.9,0.001]
[1762606121950,3.86110554,3412.0,3411.9,0.001]
[1762606122552,1.57214219,3412.0,3411.9,0.001]
[1762606127471,2.83185419,3412.0,3411.9,0.001]
[1762606127666,2.86848959,3412.0,3411.9,0.001]
[1762606127843,8.70998004,3412.0,3411.9,0.001]
[1762606128046,9.08211314,3412.0,3411.9,0.001]
[1762606128370,13.67452163,3412.0,3411.9,0.001]
[1762606128585,12.88624881,3412.0,3411.9,0.001]
[1762606128789,13.93723927,3412.0,3411.9,0.001]
[1762606129246,13.24866122,3412.0,3411.9,0.001]
[1762606129437,4.59639198,3411.6,3411.5,0.001]
[1762606129645,12.17866977,3411.6,3411.5,0.001]
[1762606129991,12.66936977,3411.6,3411.5,0.001]
[1762606130571,9.73819379,3411.6,3411.5,0.001]
[1762606130746,12.66936977,3411.6,3411.5,0.001]
[1762606131053,3.33693776,3411.3,3411.2,0.001]
[1762606131334,13.30132451,3411.3,3411.2,0.001]
[1762606131540,13.72462145,3411.3,3411.2,0.001]
[1762606131739,13.84214113,3411.3,3411.2,0.001]
[1762606132476,0.405504,3410.7,3410.1,0.006]
[1762606132777,0.3529,3410.2,3410.1,2.93846532]
[1762606132934,0.3529,3410.2,3410.1,0.006]
[1762606133283,0.4907,3410.6,3410.2,2.93234507]
[1762606133484,0.4907,3410.5,3410.2,2.93229932]
[1762606133838,1.11997595,3410.9,3410.5,2.93205468]
[1762606134035,0.81996698,3410.8,3410.3,2.93223635]
[1762606134233,0.68139103,3410.8,3410.4,2.93220047]
[1762606134460,0.4907,3410.7,3410.4,2.93220047]
[1762606134662,0.4907,3411.0,3410.5,2.93212138]
[1762606134846,0.896204,3411.0,3410.4,2.93219999]
[1762606135054,3.52121334,3411.0,3410.5,2.93210636]
[1762606135260,2.37968795,3410.9,3410.5,2.93210636]
[1762606135478,0.4973,3410.6,3410.5,2.93210636]
[1762606135976,0.988,3410.6,3410.1,0.1886]
[1762606136177,0.988,3410.6,3410.3,2.93222352]
[1762606137059,0.896204,3411.1,3410.5,0.4735]
[1762606137261,0.405504,3411.1,3410.5,2.93210172]
[1762606137569,0.4907,3411.0,3410.5,2.93210172]
[1762606137772,0.4907,3411.0,3410.4,2.93217144]
[1762606137951,1.11900313,3411.0,3410.4,2.93217144]
[1762606138142,0.4907,3410.9,3410.4,2.93217144]
[1762606139443,0.4907,3410.9,3410.5,2.93212131]
[1762606140855,0.4973,3410.6,3410.3,2.93223709]
[1762606141256,0.4973,3410.6,3410.1,0.1886]
[1762606141467,0.4907,3410.9,3410.2,2.93237933]
[1762606141665,0.4907,3410.9,3410.4,2.93216925]
[1762606142756,0.4907,3410.9,3410.1,0.6478]
[1762606142966,0.4907,3410.9,3410.1,0.1886]
[1762606143290,0.4907,3410.9,3410.3,2.93222607]
[1762606144286,1.11952046,3410.9,3410.2,2.93237527]
[1762606144692,0.4638,3410.8,3410.3,2.93229278]
[1762606144857,0.62882046,3410.9,3410.4,2.93219409]
[1762606145058,0.62868414,3411.0,3410.4,2.93219409]
[1762606145258,0.4638,3411.0,3410.4,2.93219409]
[1762606145460,0.4638,3410.9,3410.4,2.93219409]
[1762606146371,1.09248414,3410.9,3410.4,2.93219409]
[1762606146567,0.4658,3410.5,3410.1,0.1886]
[1762606146784,0.4658,3410.5,3410.2,2.93232545]
[1762606147081,0.62890696,3410.7,3410.1,0.006]
[1762606147395,0.405504,3410.9,3410.4,0.4795]
[1762606147555,0.45994941,3411.0,3410.5,0.01482816]
[1762606147757,0.62900694,3411.1,3410.5,0.01482816]
[1762606147758,0.62900694,3411.1,3410.9,0.4795]
[1762606147974,0.63100694,3411.2,3411.1,2.93160564]
[1762606148167,0.002,3411.2,3411.1,3.50820564]
[1762606149112,0.9316,3411.2,3410.4,0.1464]
[1762606149288,0.3604,3411.0,3410.5,2.93206379]
[1762606149684,0.4647,3410.6,3410.1,3.12105646]
[1762606149889,0.3615,3410.4,3410.3,2.93229334]
[1762606150111,0.4638,3410.8,3410.2,2.93236385]
[1762606151033,0.50044829,3410.8,3410.1,0.006]
[1762606151174,0.3604,3410.2,3410.1,0.006]
[1762606151498,0.8242,3410.2,3410.1,0.006]
[1762606152432,0.03665259,3410.4,3410.1,0.006]
[1762606152433,0.62927977,3410.4,3410.1,0.006]
[1762606152580,0.405504,3410.5,3410.1,0.006]
[1762606152783,0.4658,3410.2,3410.1,0.006]
[1762606153003,0.9296,3410.2,3410.1,0.006]
[1762606153196,0.4658,3410.2,3410.1,0.006]
[1762606153918,0.9296,3410.2,3410.1,0.006]
[1762606154729,1.55938701,3410.2,3410.1,0.006]
[1762606155341,2.08820934,3410.2,3410.1,0.006]
[1762606155643,6.72245941,3410.2,3410.1,0.006]
[1762606155797,6.68592746,3410.2,3410.1,0.006]
[1762606156122,7.47331471,3410.2,3410.1,0.006]
[1762606156632,6.68592746,3410.2,3410.1,0.006]
[1762606157020,7.04777929,3410.2,3410.1,0.006]
[1762606157936,3.75354813,3410.2,3410.1,0.006]
[1762606158143,7.73576941,3410.2,3410.1,0.006]
[1762606158723,6.68592746,3410.2,3410.1,0.006]
[1762606158928,7.04777929,3410.2,3410.1,0.006]
[1762606159422,11.80457911,3410.2,3410.1,0.006]
[1762606161498,12.26468552,3410.2,3410.1,0.006]
[1762606161713,12.36294589,3410.2,3410.1,0.006]
[1762606162012,12.72479772,3410.2,3410.1,0.006]
[1762606162219,12.84235436,3410.2,3410.1,0.006]
[1762606163454,12.38224795,3410.2,3410.1,0.006]
[1762606164244,11.29222595,3410.2,3410.1,0.006]
[1762606167264,4.95953315,3410.1,3410.0,0.001]
[1762606167460,0.405504,3409.9,3409.7,0.001]
[1762606167663,10.63286589,3409.8,3409.7,0.001]
[1762606167963,5.83940703,3409.8,3409.7,0.001]
[1762606168120,10.37693914,3409.8,3409.7,0.001]
[1762606168327,12.72236903,3409.8,3409.7,0.001]
[1762606169061,13.35173873,3409.8,3409.7,0.001]
[1762606169261,14.92416063,3409.8,3409.7,0.001]
[1762606169560,5.10562149,3409.8,3409.7,0.001]
[1762606169731,4.58429302,3409.8,3409.7,0.001]
[1762606169931,5.40728793,3409.8,3409.7,0.001]
[1762606170122,6.24251589,3409.8,3409.7,0.001]
[1762606170323,6.99206713,3409.8,3409.7,0.001]
[1762606170625,7.39757113,3409.8,3409.7,0.001]
[1762606170853,7.96659904,3409.8,3409.7,0.001]
[1762606171053,5.82010061,3409.8,3409.7,0.001]
[1762606171456,8.75282393,3409.8,3409.7,0.001]
[1762606172052,3.80416242,3409.8,3409.7,0.001]
[1762606172250,2.2945857,3409.8,3409.7,0.4618]
[1762606172560,0.6293697,3409.8,3409.7,0.4618]
[1762606172767,0.78622489,3410.1,3409.7,0.4618]
[1762606173525,0.405504,3410.1,3409.7,0.4618]
[1762606175063,0.6293697,3410.1,3410.0,0.4608]
[1762606175268,0.405504,3410.2,3410.0,0.4608]
[1762606175565,2.2945857,3410.2,3410.0,0.4608]
[1762606175777,0.6293697,3410.1,3410.0,0.4608]
[1762606176269,0.6293697,3410.1,3409.7,0.001]
[1762606176573,1.0798697,3410.1,3409.7,0.001]
[1762606178249,0.6293697,3410.1,3410.0,0.4608]
[1762606178452,0.6293697,3410.1,3410.0,0.9538]
[1762606178651,0.6293697,3410.3,3410.0,0.9538]
[1762606178965,0.78622489,3410.4,3410.2,0.4608]
[1762606179161,1.41559459,3410.4,3410.2,0.4608]
[1762606179372,0.6293697,3410.3,3410.2,0.4608]
[1762606179963,0.6293697,3410.3,3410.2,0.9538]
[1762606180437,0.6293697,3410.4,3410.2,0.9538]
[1762606180633,0.6293697,3410.5,3410.2,0.493]
[1762606180838,0.78622489,3410.6,3410.3,0.493]
[1762606180839,0.6293697,3410.4,3410.3,0.493]
[1762606181036,0.6293697,3410.5,3410.3,0.493]
[1762606181250,0.6293697,3410.4,3410.3,0.493]
[1762606181479,0.6293697,3410.5,3410.3,0.493]
[1762606181710,0.6293697,3410.4,3410.3,0.9538]
[1762606181860,0.6293697,3410.5,3410.3,0.493]
[1762606182058,0.6293697,3410.4,3410.3,0.493]
[1762606182277,0.6293697,3410.5,3410.3,0.493]
[1762606182482,0.6293697,3410.4,3410.1,0.6374]
[1762606182686,0.6293697,3410.5,3410.1,3.56981224]
[1762606182845,0.6293697,3410.4,3410.2,0.4829]
[1762606183050,0.6293697,3410.5,3410.2,0.4829]
[1762606183270,0.6293697,3410.4,3410.2,0.4829]
[1762606183470,0.6293697,3410.5,3410.1,0.1444]
[1762606183667,0.6293697,3410.4,3410.1,0.6273]
[1762606183875,0.6293697,3410.3,3410.1,0.6273]
[1762606184072,0.6293697,3410.5,3410.1,0.6273]
[1762606184252,0.6293697,3410.4,3410.2,0.467]
[1762606184572,0.6293697,3410.3,3409.8,2.93271915]
[1762606184773,0.6293697,3410.4,3409.7,2.93380315]
[1762606184947,0.6293697,3410.3,3409.8,0.4829]
[1762606185151,0.6293697,3410.4,3409.8,3.41561973]
[1762606185347,0.6293697,3410.5,3409.9,2.93263732]
[1762606185555,0.6293697,3410.4,3410.1,2.93246028]
[1762606185855,0.6293697,3410.5,3410.2,0.6273]
[1762606186054,0.6293697,3410.4,3410.2,0.6273]
[1762606186286,0.6293697,3410.5,3410.2,0.1444]
[1762606186481,0.6293697,3410.4,3409.9,2.93259944]
[1762606186656,0.6293697,3410.4,3409.9,2.93257239]
[1762606186861,0.6293697,3410.4,3409.9,3.41547239]
[1762606187087,0.6293697,3410.5,3409.9,2.93257239]
[1762606187395,0.6293697,3410.4,3410.0,0.4829]
[1762606187570,0.6293697,3410.5,3410.0,0.4829]
[1762606187773,0.6293697,3410.4,3410.1,0.1444]
[1762606188066,0.6293697,3410.5,3410.1,0.1444]
[1762606188256,0.6293697,3410.4,3410.1,0.1444]
[1762606188452,0.6293697,3410.5,3410.1,0.1444]
[1762606188656,0.6293697,3410.4,3410.1,0.1444]
[1762606188857,0.6293697,3410.5,3410.1,0.1444]
[1762606189057,0.6293697,3410.4,3410.1,0.1444]
[1762606189269,0.6293697,3410.5,3410.1,0.1444]
[1762606189495,0.6293697,3410.4,3410.1,0.1444]
[1762606189692,1.0827697,3410.5,3409.7,3.7248922]
[1762606189996,3.56162338,3410.4,3409.7,0.001]
[1762606190203,2.93237933,3410.2,3409.7,0.001]
[1762606190516,0.4803,3409.8,3409.7,0.001]
[1762606191766,0.6300779,3410.0,3409.7,0.468]
[1762606191983,0.63029152,3410.1,3409.8,0.467]
[1762606192161,0.63029152,3410.0,3409.8,0.467]
[1762606192490,0.63029152,3410.0,3409.7,0.001]
[1762606192661,0.63029152,3409.9,3409.7,0.001]
[1762606192860,0.63029152,3410.0,3409.7,0.001]
[1762606193077,0.63029152,3409.9,3409.7,0.001]
[1762606193282,0.63029152,3410.0,3409.7,0.001]
[1762606193478,1.24099738,3410.1,3409.7,0.001]
[1762606193479,0.63029152,3409.9,3409.7,0.001]
[1762606193678,1.24099738,3410.1,3409.7,0.001]
[1762606193679,0.63029152,3410.0,3409.7,0.001]
[1762606193878,0.63029152,3409.9,3409.7,0.001]
[1762606194085,1.89000352,3410.0,3409.7,0.001]
[1762606194315,0.63029152,3409.9,3409.7,0.001]
[1762606195796,0.4803,3409.8,3409.7,0.001]
[1762606196115,0.9337,3409.8,3409.7,0.001]
[1762606196281,1.56399152,3409.8,3409.7,0.001]
[1762606196485,1.11059152,3409.8,3409.7,0.001]
[1762606196902,0.4803,3409.8,3409.7,0.001]
[1762606197298,1.11059152,3409.8,3409.7,0.001]
[1762606197701,0.4803,3409.8,3409.7,0.001]
[1762606198018,2.35710607,3409.8,3409.7,0.001]
[1762606198221,1.60065056,3409.8,3409.7,0.001]
[1762606199725,2.38824794,3409.8,3409.7,0.001]
[1762606199898,2.3515889,3409.8,3409.7,0.001]
[1762606200227,0.63029152,3409.8,3409.7,0.468]
[1762606200785,1.4178889,3409.8,3409.7,0.001]
[1762606201033,4.42524025,3409.8,3409.7,0.001]